bitfinex/quotes_ETHUSD_20251118
["timestamp","ask_amount","ask_price","bid_price","bid_amount"]
[1763442961931,0.002,3024.9,3024.8,4.46797189]
[1763442962127,0.002,3024.9,3024.8,4.94937189]
[1763442962332,0.29,3024.9,3024.8,4.94937189]
[1763442964527,0.002,3024.9,3024.8,7.27379505]
[1763442964699,0.29,3024.9,3024.8,4.94937189]
[1763442964900,0.29,3024.9,3024.8,11.11191944]
[1763442965321,2.68,3024.9,3024.8,14.34225693]
[1763442965534,2.68,3024.9,3024.8,12.01891208]
[1763442965932,1.485,3024.9,3024.8,12.01891208]
[1763442966332,1.485,3024.9,3024.8,14.34158003]
[1763442966903,0.29,3024.9,3024.8,14.34158003]
[1763442968042,0.002,3024.9,3024.8,14.34158003]
[1763442968215,0.1962,3026.9,3024.9,1.31249664]
[1763442968431,0.1962,3026.9,3026.1,0.87013154]
[1763442968432,0.4629,3026.8,3026.1,0.87013154]
[1763442968626,0.1962,3026.9,3026.3,0.87013154]
[1763442968954,0.1962,3026.9,3025.7,6.16254755]
[1763442968955,0.6591,3026.9,3026.4,0.87013154]
[1763442969156,0.4829,3026.5,3026.0,1.86515806]
[1763442969327,0.1962,3027.5,3026.4,0.4693]
[1763442969573,0.1962,3027.5,3026.8,0.87013154]
[1763442969574,0.288,3027.4,3026.8,0.87013154]
[1763442970462,0.288,3027.4,3026.7,0.87013154]
[1763442970756,0.7509,3027.4,3026.8,0.87013154]
[1763442971123,0.288,3027.4,3026.8,0.87013154]
[1763442971334,0.288,3027.4,3026.9,0.87013154]
[1763442971848,0.7509,3027.4,3026.9,0.87013154]
[1763442972048,0.7509,3027.4,3027.0,0.288]
[1763442972772,0.04129091,3027.3,3027.0,0.288]
[1763442972926,0.4829,3027.1,3026.6,0.65884436]
[1763442973135,0.4829,3027.1,3026.5,1.62103154]
[1763442973860,0.4829,3027.1,3026.5,0.7509]
[1763442974282,0.4829,3027.1,3026.5,1.42873207]
[1763442974447,0.51965726,3027.0,3026.5,1.42873207]
[1763442975272,2.388,3026.9,3026.5,1.42873207]
[1763442975478,0.288,3026.8,3026.6,0.70388636]
[1763442975754,0.288,3026.8,3026.6,0.474]
[1763442975976,0.288,3026.8,3026.7,0.4693]
[1763442977193,0.51965726,3027.0,3026.7,5.11735657]
[1763442977389,0.1915,3028.7,3027.9,6.16254755]
[1763442977691,0.288,3028.6,3027.9,6.16254755]
[1763442977892,0.288,3028.6,3028.0,0.136]
[1763442978049,0.288,3028.6,3028.0,0.5989]
[1763442978258,0.1915,3028.9,3028.0,0.5989]
[1763442978486,0.288,3028.5,3028.0,0.5989]
[1763442978879,0.288,3028.5,3028.1,0.4655]
[1763442979464,0.288,3028.5,3028.0,0.4629]
[1763442979465,0.4843,3028.2,3028.0,0.4629]
[1763442979666,0.33868001,3028.1,3026.8,0.86298885]
[1763442979865,0.4824,3027.5,3026.6,0.8816]
[1763442980052,0.287,3027.4,3026.6,0.8816]
[1763442980251,0.287,3027.4,3026.6,4.29417579]
[1763442980454,0.287,3027.4,3026.6,0.99024209]
[1763442980680,0.002,3027.0,3026.6,0.24224209]
[1763442980891,0.002,3027.0,3026.6,0.70224209]
[1763442981284,0.002,3027.0,3026.6,4.00625264]
[1763442981492,0.002,3027.0,3026.6,0.70224209]
[1763442982809,0.6432,3026.9,3026.6,0.70224209]
[1763442983212,0.287,3026.8,3026.6,0.46]
[1763442983507,0.4843,3026.7,3026.5,0.67783207]
[1763442983718,0.002,3027.0,3026.7,0.4925]
[1763442983881,0.287,3026.9,3026.8,0.4925]
[1763442984208,0.287,3026.9,3026.6,1.2125]
[1763442984393,0.287,3026.9,3026.8,0.4925]
[1763442984789,0.80655382,3026.9,3026.8,0.4925]
[1763442985309,3.19455382,3026.9,3026.7,1.48463298]
[1763442985811,0.80655382,3026.9,3026.6,1.60998885]
[1763442986108,0.80655382,3026.9,3026.8,0.4925]
[1763442987409,1.47405382,3026.9,3026.8,0.86298885]
[1763442987583,1.47405382,3026.9,3026.7,0.86298885]
[1763442987788,1.47405382,3026.9,3026.8,0.86298885]
[1763442987987,0.46,3026.8,3026.3,0.36298885]
[1763442988187,0.90699264,3026.6,3025.8,1.15065181]
[1763442988416,0.1897,3025.9,3025.0,1.15065181]
[1763442988612,0.0019,3025.7,3025.0,1.15065181]
[1763442988818,0.287,3025.8,3025.0,1.15065181]
[1763442988819,0.287,3025.8,3025.1,0.6497]
[1763442989204,0.287,3025.8,3025.2,1.15065181]
[1763442989939,0.747,3025.8,3025.2,1.15065181]
[1763442990239,0.46,3026.2,3025.2,1.61615181]
[1763442990423,0.287,3026.1,3025.8,1.15065181]
[1763442990628,0.6432,3026.9,3025.9,1.15065181]
[1763442990805,0.287,3026.8,3026.0,0.4925]
[1763442991001,0.287,3026.8,3026.0,1.64315181]
[1763442991233,0.287,3026.8,3026.1,0.1842]
[1763442991940,0.287,3026.8,3026.0,1.15065181]
[1763442992183,0.747,3026.8,3026.0,1.15065181]
[1763442992318,0.287,3026.8,3026.1,1.33485181]
[1763442992951,0.287,3026.8,3026.2,1.61615181]
[1763442993502,0.287,3026.8,3026.3,1.15065181]
[1763442993833,0.287,3026.8,3026.4,1.15065181]
[1763442994038,0.51964363,3026.7,3026.4,1.61615181]
[1763442994344,0.51964363,3026.7,3026.5,1.61615181]
[1763442994641,0.51964363,3026.7,3026.6,0.4925]
[1763442994802,0.51964363,3026.7,3026.6,0.958]
[1763442995007,0.51964363,3026.7,3026.6,1.55680563]
[1763442995335,2.90764363,3026.7,3026.5,1.72597771]
[1763442995635,2.90764363,3026.7,3026.6,0.4925]
[1763442995800,2.90764363,3026.7,3026.6,1.62621647]
[1763442996205,2.90764363,3026.7,3026.6,1.16071647]
[1763442996405,2.388,3026.7,3026.6,2.88669418]
[1763442997345,0.287,3026.8,3026.6,7.35858804]
[1763442997526,0.287,3026.8,3026.7,2.67767771]
[1763442998132,0.3365,3026.8,3026.7,1.72597771]
[1763442998331,0.287,3026.8,3026.6,2.39419418]
[1763442998849,0.287,3026.8,3026.7,2.18087771]
[1763442999154,0.287,3026.8,3026.7,1.72597771]
[1763442999517,0.287,3026.8,3026.7,2.67767771]
[1763442999738,0.287,3026.8,3026.7,2.18087771]
[1763442999942,0.287,3026.8,3026.7,1.72597771]
[1763443000343,0.8328,3026.8,3026.5,1.16014941]
[1763443000557,0.8328,3026.8,3026.5,0.001]
[1763443000558,0.287,3026.8,3026.5,0.001]
[1763443001066,0.287,3026.7,3026.5,1.16014941]
[1763443002064,0.287,3026.7,3026.6,1.15914941]
[1763443002751,0.002,3027.0,3026.6,0.9517]
[1763443002974,0.287,3026.9,3026.8,1.15902242]
[1763443003163,0.287,3026.9,3026.7,3.27595064]
[1763443003363,0.287,3026.9,3026.8,1.72597771]
[1763443003676,0.287,3026.9,3026.8,2.18087771]
[1763443003841,0.7499,3026.9,3026.8,1.72597771]
[1763443004160,0.287,3026.9,3026.8,1.72597771]
[1763443004556,0.80659833,3026.9,3026.8,1.72597771]
[1763443004753,0.80659833,3026.9,3026.8,1.73858238]
[1763443004754,1.53709833,3026.9,3026.8,1.73858238]
[1763443005073,1.53709833,3026.9,3026.8,1.15930615]
[1763443005250,3.65739833,3026.9,3026.8,1.15930615]
[1763443005456,3.19459833,3026.9,3026.8,1.15930615]
[1763443006265,0.51959833,3026.9,3026.6,1.73858238]
[1763443006464,1.481,3026.8,3026.7,1.73858238]
[1763443007592,1.481,3026.8,3026.6,1.73858238]
[1763443008149,1.481,3026.8,3026.7,2.19348238]
[1763443008364,1.481,3026.8,3026.5,0.001]
[1763443009361,1.481,3026.8,3026.5,2.81815078]
[1763443009897,1.481,3026.8,3026.7,0.4549]
[1763443010352,0.287,3026.8,3026.7,0.4549]
[1763443011059,0.287,3026.8,3026.5,0.61323913]
[1763443011294,0.287,3026.8,3026.5,0.001]
[1763443011586,0.287,3026.8,3026.5,0.4978]
[1763443012488,0.287,3026.8,3026.5,0.001]
[1763443013498,0.2314,3026.6,3026.5,0.001]
[1763443014546,0.287,3026.8,3026.5,0.001]
[1763443014772,0.002,3027.0,3026.6,1.74225798]
[1763443014773,0.287,3026.7,3026.6,1.74225798]
[1763443015407,2.675,3026.7,3026.6,1.74225798]
[1763443015790,2.675,3026.7,3026.5,0.001]
[1763443016398,0.287,3026.7,3026.6,0.4549]
[1763443016787,0.002,3027.0,3026.6,0.4549]
[1763443016788,0.002,3027.0,3026.6,6.18299256]
[1763443016981,0.002,3027.0,3026.9,0.4549]
[1763443017212,0.289,3027.0,3026.9,0.860404]
[1763443017388,0.1015,3028.0,3026.9,7.96462412]
[1763443017585,0.1015,3028.0,3027.8,1.16085143]
[1763443017991,0.5,3028.5,3027.8,1.16085143]
[1763443018190,0.5,3028.5,3027.9,1.16085143]
[1763443018580,0.287,3028.4,3027.9,1.16085143]
[1763443018912,0.0495,3028.0,3027.9,1.16085143]
[1763443019909,0.287,3028.4,3027.9,1.16085143]
[1763443020115,0.787,3028.4,3027.9,1.16085143]
[1763443020316,0.287,3028.4,3028.1,1.16085143]
[1763443020493,0.287,3028.4,3027.9,1.74127715]
[1763443020494,0.287,3028.4,3028.3,1.74127715]
[1763443020689,0.287,3028.4,3028.0,2.81850287]
[1763443021195,0.787,3028.4,3028.0,2.32170287]
[1763443021522,0.1824,3030.0,3028.3,0.4549]
[1763443021730,0.1824,3030.0,3029.1,1.16128221]
[1763443021731,0.787,3029.6,3029.1,1.16128221]
[1763443021911,0.5,3029.5,3029.2,1.16128221]
[1763443022094,0.5,3029.5,3028.8,1.16128221]
[1763443022499,0.2398,3028.9,3028.8,1.16128221]
[1763443022830,0.5268,3028.9,3028.8,1.16128221]
[1763443023227,1.04611926,3028.9,3028.8,1.16128221]
[1763443023432,0.4968,3029.2,3028.8,1.16128221]
[1763443023433,3.30024155,3030.1,3028.8,1.16128221]
[1763443023434,0.1032,3031.4,3028.8,2.40330276]
[1763443023602,0.5,3030.6,3029.6,1.049704]
[1763443023804,0.1824,3030.8,3029.7,0.405504]
[1763443024124,0.1824,3030.8,3030.2,1.1584176]
[1763443024435,0.1824,3030.8,3030.1,1.1584176]
[1763443024592,0.1824,3030.8,3030.0,1.1584176]
[1763443024793,0.54124459,3030.7,3029.8,1.1584176]
[1763443025133,0.287,3030.6,3029.6,1.1584176]
[1763443025352,0.90699264,3030.5,3029.5,1.1584176]
[1763443025528,0.241,3029.6,3029.3,1.1584176]
[1763443025826,0.287,3029.5,3029.1,1.1584176]
[1763443025992,0.287,3029.4,3029.1,1.1584176]
[1763443026389,0.287,3029.4,3029.1,0.1838]
[1763443026627,0.1915,3029.8,3029.2,3.30120163]
[1763443026825,0.287,3029.7,3029.0,1.1584176]
[1763443027230,0.7384,3029.7,3029.0,1.1584176]
[1763443027731,0.1824,3030.8,3029.1,0.6621]
[1763443027933,0.4514,3030.5,3029.2,0.99048964]
[1763443028094,0.4514,3030.5,3029.2,0.51218964]
[1763443028294,0.4514,3030.5,3029.3,0.4783]
[1763443028528,0.4514,3030.5,3029.2,0.47136362]
[1763443028722,0.4514,3030.5,3029.1,1.3422176]
[1763443029316,0.4514,3030.5,3029.1,0.1838]
[1763443029521,0.573,3029.2,3029.0,1.1584176]
[1763443029847,0.1982,3029.6,3028.5,4.46037605]
[1763443030051,0.287,3029.5,3028.5,4.46037605]
[1763443030642,0.4514,3029.4,3028.4,1.45515691]
[1763443030842,0.04126365,3029.3,3028.3,0.64569018]
[1763443031142,0.4514,3029.4,3027.8,0.1893]
[1763443031143,0.5664,3028.4,3027.8,1.1584176]
[1763443031305,0.1982,3029.6,3027.8,0.4783]
[1763443031306,0.287,3028.3,3027.8,0.4783]
[1763443031506,0.287,3028.3,3027.6,1.1584176]
[1763443031706,0.287,3028.3,3027.6,4.56190009]
[1763443031911,0.287,3028.3,3027.6,1.25895611]
[1763443032441,0.1982,3028.8,3028.2,0.6133]
[1763443032644,0.287,3028.7,3028.2,0.6133]
[1763443032850,0.1982,3029.6,3028.6,0.4917]
[1763443033061,0.16,3029.5,3028.7,0.4917]
[1763443033407,0.16,3029.5,3028.2,1.8592264]
[1763443033408,0.5508,3028.8,3028.2,0.1216]
[1763443033605,0.287,3028.7,3028.2,0.41371314]
[1763443033849,0.287,3028.7,3028.2,3.71600337]
[1763443034142,0.4514,3029.5,3028.6,0.4917]
[1763443034329,0.287,3029.4,3028.6,0.4917]
[1763443034942,0.287,3029.4,3028.3,0.45074586]
[1763443035148,0.287,3029.4,3028.3,1.37141185]
[1763443035350,2.386,3029.3,3028.3,1.37141185]
[1763443035712,2.386,3029.3,3028.3,3.7529196]
[1763443035936,1.193,3029.3,3028.4,0.405504]
[1763443036122,0.4514,3029.2,3028.3,5.03980014]
[1763443036329,0.4514,3029.2,3028.3,3.30215088]
[1763443036649,0.6814,3028.4,3028.1,1.7386264]
[1763443036813,0.7702,3028.3,3028.1,0.001]
[1763443037014,0.4832,3028.2,3028.1,0.001]
[1763443037225,0.9346,3028.2,3028.1,0.001]
[1763443037660,0.9346,3028.2,3026.7,1.7376264]
[1763443037874,0.9346,3028.2,3026.8,0.17376264]
[1763443037875,0.4514,3028.1,3026.8,0.17376264]
[1763443038077,0.287,3028.0,3026.8,0.17376264]
[1763443038275,0.287,3027.9,3026.8,0.8482859]
[1763443038612,0.0412841,3027.8,3026.8,0.17376264]
[1763443038822,0.1982,3026.9,3026.5,0.001]
[1763443038969,0.287,3026.8,3026.5,0.001]
[1763443040001,0.1974,3027.5,3026.6,0.3439]
[1763443040167,0.287,3027.4,3026.7,0.3439]
[1763443041090,0.1982,3029.0,3026.8,0.405504]
[1763443041290,0.4897,3028.6,3027.2,1.7376264]
[1763443041600,0.1982,3029.0,3027.0,6.43003944]
[1763443041601,0.287,3028.3,3027.4,3.30316443]
[1763443041800,0.287,3028.3,3027.4,8.34395526]
[1763443042016,0.287,3028.3,3027.5,0.83439553]
[1763443042379,0.287,3028.2,3027.5,0.83439553]
[1763443042994,0.287,3028.2,3027.4,1.7376264]
[1763443042995,0.7767,3028.2,3027.4,1.7376264]
[1763443043417,0.6889,3027.5,3027.3,1.7376264]
[1763443043636,0.287,3027.4,3027.0,1.7376264]
[1763443044202,0.287,3027.4,3027.1,1.7376264]
[1763443044430,0.287,3027.4,3027.1,2.24175887]
[1763443045347,2.386,3027.3,3027.2,1.7376264]
[1763443045545,2.386,3027.3,3027.1,2.24175887]
[1763443046045,1.193,3027.3,3027.1,5.0411092]
[1763443046248,0.1974,3027.9,3027.1,5.0411092]
[1763443046436,0.287,3027.8,3027.2,2.0815264]
[1763443047211,0.287,3027.8,3027.3,1.7376264]
[1763443047639,0.287,3027.8,3027.2,1.7376264]
[1763443047856,0.287,3027.8,3027.3,3.30327354]
[1763443048040,0.287,3027.8,3027.7,0.86844673]
[1763443048689,0.287,3027.8,3027.6,0.86844673]
[1763443048889,0.287,3027.8,3027.7,0.86844673]
[1763443049102,0.1974,3027.9,3027.7,0.86844673]
[1763443049383,0.1974,3027.9,3027.6,0.86844673]
[1763443049384,0.287,3027.8,3027.6,0.86844673]
[1763443049692,0.287,3027.8,3027.7,0.86844673]
[1763443049693,0.7785,3027.8,3027.7,0.86844673]
[1763443049900,0.1974,3028.6,3027.7,7.29347033]
[1763443050094,0.287,3028.5,3028.2,0.86746852]
[1763443050390,0.287,3028.5,3028.3,0.86746852]
[1763443050890,0.287,3028.4,3027.9,1.73493704]
[1763443051396,0.4897,3028.9,3028.0,1.73493704]
[1763443051553,0.287,3028.8,3028.4,0.86766345]
[1763443051757,0.287,3028.8,3028.6,0.86766345]
[1763443052058,0.287,3028.8,3028.6,0.34838593]
[1763443052584,0.287,3028.8,3028.1,5.03732817]
[1763443052585,0.9812,3028.7,3028.1,5.03732817]
[1763443052785,0.287,3028.8,3028.1,6.21520993]
[1763443052990,0.286,3028.7,3028.3,1.73493704]
[1763443053195,6.43003944,3031.0,3028.1,14.21271317]
[1763443053196,0.1974,3029.8,3028.7,0.3439]
[1763443053496,0.286,3029.6,3029.0,1.73272641]
[1763443054195,0.4897,3029.5,3028.9,5.03416852]
[1763443054370,0.286,3029.6,3029.0,1.73272641]
[1763443054760,0.4897,3029.5,3029.0,1.73272641]
[1763443054998,0.4897,3029.5,3028.9,1.73272641]
[1763443054999,0.4915,3029.1,3028.9,1.73272641]
[1763443055293,2.386,3029.0,3028.8,1.73272641]
[1763443055498,0.9143,3028.9,3028.7,1.73272641]
[1763443055703,0.002,3028.7,3028.6,1.73272641]
[1763443056285,0.002,3028.7,3028.4,3.30202814]
[1763443056614,0.002,3028.7,3028.4,1.00469018]
[1763443056771,0.002,3028.7,3028.6,1.73556057]
[1763443056971,0.4822,3028.7,3028.4,1.73556057]
[1763443057177,0.002,3028.7,3028.4,1.73556057]
[1763443057410,0.4719,3028.6,3028.4,1.73556057]
[1763443057616,0.002,3028.7,3028.4,1.73556057]
[1763443058104,0.002,3028.7,3028.1,0.67015566]
[1763443058105,0.002,3028.7,3028.5,1.73556057]
[1763443058312,0.286,3028.6,3028.5,1.73556057]
[1763443058515,1.2381,3028.6,3028.5,1.73556057]
[1763443058715,0.002,3028.7,3028.5,1.73556057]
[1763443058925,0.286,3028.6,3028.5,1.73556057]
[1763443059128,0.286,3028.6,3028.4,3.30203165]
[1763443059329,0.286,3028.6,3028.5,1.73645072]
[1763443059978,0.286,3028.6,3028.2,6.60455277]
[1763443060221,0.286,3028.6,3028.3,1.23652556]
[1763443060426,0.286,3028.6,3028.5,1.73590325]
[1763443060726,0.286,3028.6,3028.5,1.73603897]
[1763443060922,0.7662,3028.6,3028.5,1.73603897]
[1763443061121,0.286,3028.6,3028.5,1.73603897]
[1763443061480,0.002,3028.7,3028.5,0.5175039]
[1763443061725,0.002,3028.7,3028.6,0.3439]
[1763443062002,0.288,3028.7,3028.6,0.3439]
[1763443062213,0.288,3028.7,3028.6,3.98965564]
[1763443062495,0.288,3028.7,3028.5,3.30196307]
[1763443062703,0.288,3028.7,3028.4,2.32170287]
[1763443062901,0.288,3028.7,3028.4,3.3020737]
[1763443063524,0.288,3028.7,3028.4,6.6041474]
[1763443063824,0.288,3028.7,3028.3,2.32170287]
[1763443064032,0.467,3028.4,3028.1,3.30232264]
[1763443064321,0.7599,3028.7,3028.1,6.12597398]
[1763443064480,0.7599,3028.7,3028.4,1.73502823]
[1763443064685,0.288,3028.7,3028.5,1.15667687]
[1763443065094,0.4802,3028.6,3028.5,1.15667687]
[1763443065301,0.4719,3030.6,3028.6,0.6878]
[1763443065519,1.479,3030.5,3029.2,1.5621455]
[1763443065716,0.51314868,3030.4,3029.8,1.1566415]
[1763443066035,0.4719,3030.4,3029.8,1.1566415]
[1763443066324,0.4719,3030.4,3029.7,1.1566415]
[1763443066325,0.6703,3029.9,3029.7,1.1566415]
[1763443066483,0.4742,3029.7,3029.6,1.1566415]
[1763443066688,0.286,3029.8,3029.6,1.1566415]
[1763443067327,0.1974,3031.1,3029.6,1.1566415]
[1763443067527,0.4719,3030.3,3030.0,1.1566415]
[1763443067736,0.286,3030.2,3029.9,1.1566415]
[1763443068023,0.286,3030.2,3029.3,1.1566415]
[1763443068214,0.4802,3029.8,3029.3,1.1566415]
[1763443068410,0.1901,3029.4,3029.3,1.1566415]
[1763443068616,0.4761,3029.4,3029.3,1.1566415]
[1763443069011,1.4282,3029.4,3029.3,1.1566415]
[1763443069211,1.4282,3029.4,3029.2,1.1566415]
[1763443069556,0.4719,3029.3,3028.7,1.1566415]
[1763443069859,0.1901,3028.8,3028.6,1.1566415]
[1763443070025,0.286,3028.7,3028.6,1.15412975]
[1763443070346,0.286,3028.7,3028.5,1.73502823]
[1763443071053,0.286,3028.6,3028.5,1.73502823]
[1763443071955,0.286,3028.6,3028.4,3.30204642]
[1763443072526,0.286,3028.6,3028.5,0.39614902]
[1763443072727,0.286,3028.6,3028.4,3.30204642]
[1763443073023,0.286,3028.6,3028.5,1.73136484]
[1763443073228,0.286,3028.6,3028.3,0.65944375]
[1763443073229,0.286,3028.6,3028.3,3.96158807]
[1763443073550,0.286,3028.6,3028.3,3.30214432]
[1763443073752,0.286,3028.6,3028.5,1.73316612]
[1763443073957,1.2381,3028.6,3028.2,1.15591915]
[1763443074119,0.4742,3028.2,3027.6,1.15591915]
[1763443074315,0.6703,3027.7,3027.6,1.15591915]
[1763443074516,1.4282,3027.7,3027.6,1.15591915]
[1763443074724,1.4282,3027.7,3027.5,1.15591915]
[1763443074998,1.4282,3027.7,3026.8,0.001]
[1763443074999,0.4719,3027.6,3027.2,1.15591915]
[1763443075162,0.4719,3027.6,3027.0,1.73316612]
[1763443075163,0.4802,3027.4,3027.3,1.15591915]
[1763443075329,0.4802,3027.4,3026.8,0.001]
[1763443075330,0.9521,3027.4,3027.2,1.15591915]
[1763443075514,0.286,3027.3,3027.2,1.15591915]
[1763443075719,1.2381,3027.3,3027.2,1.15591915]
[1763443075963,1.2381,3027.3,3027.0,1.15591915]
[1763443076119,1.2381,3027.3,3026.8,1.15691915]
[1763443076120,0.6703,3026.9,3026.8,1.15691915]
[1763443076449,0.1901,3026.9,3026.8,1.15691915]
[1763443077219,0.1901,3026.9,3026.8,0.001]
[1763443077838,1.1422,3026.9,3026.8,0.001]
[1763443079035,0.1901,3026.9,3026.8,0.001]
[1763443079573,0.6703,3026.9,3026.8,0.001]
[1763443080083,0.4719,3027.2,3026.8,0.001]
[1763443080251,0.286,3027.1,3026.8,0.001]
[1763443080941,0.7579,3027.1,3026.8,0.001]
[1763443081575,0.6703,3026.9,3026.8,0.001]
[1763443081782,0.71159637,3026.9,3026.5,0.001]
[1763443081983,0.71159637,3026.9,3025.9,0.001]
[1763443081984,0.4802,3026.3,3025.9,0.001]
[1763443082187,0.4802,3026.0,3024.9,1.15591915]
[1763443082348,7.51725176,3025.6,3024.5,0.001]
[1763443082544,0.405504,3025.4,3024.5,0.001]
[1763443082873,0.90699264,3024.5,3023.8,0.001]
[1763443083044,0.79923051,3024.4,3023.8,0.001]
[1763443083378,0.1901,3023.9,3023.5,0.001]
[1763443083553,0.32733871,3023.8,3023.5,0.001]
[1763443083761,0.7579,3023.8,3023.5,0.001]
[1763443084165,0.4719,3023.7,3023.5,0.001]
[1763443084598,0.286,3023.6,3023.5,0.001]
[1763443084763,0.4719,3023.7,3023.5,0.001]
[1763443084965,0.7579,3023.6,3023.5,0.001]
[1763443085389,4.05289264,3023.6,3023.5,0.001]
[1763443085782,1.37889264,3023.6,3023.5,0.001]
[1763443085963,1.66489264,3023.6,3023.5,0.001]
[1763443086660,0.1901,3023.9,3023.5,0.001]
[1763443086876,0.286,3023.6,3023.5,0.001]
[1763443087399,0.1901,3025.0,3023.5,0.001]
[1763443087400,0.1854,3024.1,3023.5,0.001]
[1763443087701,0.1901,3025.0,3023.5,0.001]
[1763443087868,0.4902,3024.9,3023.5,0.001]
[1763443088071,0.286,3024.8,3023.5,0.001]
[1763443088273,0.1901,3025.0,3023.6,0.3509]
[1763443088495,0.1901,3025.0,3023.7,10.57399401]
[1763443088496,0.286,3024.9,3023.7,10.57399401]
[1763443088815,0.1901,3025.0,3023.7,10.57399401]
[1763443088816,0.286,3024.8,3023.7,10.57399401]
[1763443088974,0.286,3024.8,3023.5,6.17284813]
[1763443088975,0.1854,3023.8,3023.5,0.001]
[1763443089313,0.286,3023.7,3023.5,0.001]
[1763443089599,0.7762,3023.7,3023.5,0.001]
[1763443089969,0.7762,3023.6,3023.5,0.001]
[1763443090189,0.286,3023.6,3023.5,0.001]
[1763443090595,0.6756,3023.8,3023.5,0.001]
[1763443090762,0.1901,3025.0,3023.5,0.001]
[1763443090763,0.286,3023.7,3023.5,0.001]
[1763443090962,0.286,3023.6,3023.5,0.001]
[1763443091809,0.7762,3023.6,3023.5,0.001]
[1763443092796,0.286,3023.6,3023.5,0.001]
[1763443093005,0.7762,3023.6,3023.5,0.001]
[1763443095228,1.9712,3023.6,3023.5,0.001]
[1763443095385,4.07319264,3023.6,3023.5,0.001]
[1763443095588,1.39719264,3023.6,3023.5,0.001]
[1763443095780,1.68319264,3023.6,3023.5,0.001]
[1763443097311,1.39719264,3023.6,3023.5,0.001]
[1763443097481,1.68319264,3023.6,3023.5,0.001]
[1763443097888,1.39719264,3023.6,3023.5,0.001]
[1763443098099,1.68319264,3023.6,3023.5,0.001]
[1763443099622,1.85249264,3023.6,3023.5,0.001]
[1763443099797,2.13849264,3023.6,3023.5,0.001]
[1763443100347,0.90699264,3023.6,3023.5,0.001]
[1763443100502,0.286,3023.6,3023.5,0.001]
[1763443100705,0.002,3023.8,3023.5,0.001]
[1763443100926,0.286,3023.7,3023.5,0.001]
[1763443101250,0.002,3023.8,3023.5,0.001]
[1763443101423,0.286,3023.7,3023.5,0.001]
[1763443101623,0.002,3023.8,3023.6,0.3509]
[1763443101822,0.002,3023.8,3023.7,0.3509]
[1763443102027,0.288,3023.8,3023.7,0.3509]
[1763443102339,0.288,3023.8,3023.5,0.001]
[1763443102707,0.002,3023.8,3023.7,3.6581064]
[1763443102903,0.002,3023.8,3023.7,4.74073903]
[1763443103146,0.286,3023.8,3023.7,11.35515183]
[1763443103324,0.002,3024.2,3023.7,11.35515183]
[1763443103325,0.002,3024.2,3023.7,8.04794543]
[1763443103635,0.002,3024.2,3024.1,0.5279]
[1763443103844,0.002,3024.2,3024.1,0.8788]
[1763443104448,0.002,3024.5,3024.1,0.933404]
[1763443104650,0.286,3024.2,3024.1,0.582504]
[1763443104811,0.002,3024.5,3024.2,0.405504]
[1763443105011,0.286,3024.4,3024.2,0.405504]
[1763443105351,2.39,3024.3,3024.2,1.91232315]
[1763443106046,1.481,3024.3,3024.2,1.91232315]
[1763443106246,0.286,3024.3,3024.2,1.72776815]
[1763443106450,0.286,3024.3,3024.1,3.48376471]
[1763443106652,0.286,3024.3,3024.2,0.3509]
[1763443106847,0.286,3024.3,3024.2,3.65755961]
[1763443107052,0.286,3024.3,3024.2,4.04101557]
[1763443107259,0.286,3024.3,3024.2,1.08525596]
[1763443107446,0.286,3024.3,3024.2,4.04101557]
[1763443107949,0.286,3024.3,3024.2,4.39191557]
[1763443108317,0.002,3024.5,3024.2,4.39191557]
[1763443108318,0.002,3024.5,3024.2,7.69857518]
[1763443108518,0.002,3024.5,3024.4,0.3509]
[1763443108962,0.002,3024.5,3024.4,4.00824094]
[1763443109269,0.288,3024.5,3024.4,4.00824094]
[1763443109832,0.288,3024.5,3024.4,4.41374494]
[1763443110943,0.288,3024.5,3024.4,4.00824094]
[1763443111150,0.288,3024.5,3024.4,4.87503465]
[1763443111337,0.288,3024.5,3024.4,1.73294139]
[1763443111538,0.288,3024.5,3024.3,1.15553806]
[1763443111937,0.288,3024.5,3024.4,0.7018]
[1763443111938,0.002,3024.5,3024.4,0.7018]
[1763443112142,0.288,3024.5,3024.4,1.85733806]
[1763443112337,0.288,3024.5,3024.4,1.15553806]
[1763443112558,0.288,3024.5,3024.4,1.77505009]
[1763443112768,0.288,3024.5,3024.4,2.12595009]
[1763443113073,0.288,3024.5,3024.4,4.62775297]
[1763443113285,0.288,3024.5,3024.4,2.12803278]
[1763443113653,0.288,3024.5,3024.4,1.50852075]
[1763443113852,0.288,3024.5,3024.4,4.81496169]
[1763443114161,0.288,3024.5,3024.4,4.00824094]
[1763443114370,0.002,3024.5,3024.4,4.81481078]
[1763443114575,0.288,3024.5,3024.4,3.65734094]
[1763443114867,0.288,3024.5,3024.4,4.85768989]
[1763443115069,0.288,3024.5,3024.4,5.20858989]
[1763443115070,0.002,3024.5,3024.4,5.20858989]
[1763443115236,2.678,3024.5,3024.4,5.20858989]
[1763443116245,0.4925,3026.4,3024.5,0.92636299]
[1763443116454,0.1813,3028.0,3025.9,0.86838164]
[1763443116664,0.1813,3028.0,3025.4,3.04925992]
[1763443116665,0.1813,3028.0,3026.5,0.86838164]
[1763443116864,0.7785,3027.9,3026.9,0.86838164]
[1763443117064,0.7785,3027.9,3027.0,0.86838164]
[1763443117280,0.4925,3027.9,3027.0,0.86838164]